bitfinex-derivatives/quotes_SOLF0:USTF0_20251108
["timestamp","ask_amount","ask_price","bid_price","bid_amount"]
[1762627659218,3.00718019,157.77,157.74,5.7073]
[1762627661623,3.00718019,157.77,157.74,8.8873]
[1762627663119,0.04718019,157.77,157.75,3.18]
[1762627663324,0.04718019,157.77,157.76,3.18]
[1762627669231,5.13915339,157.84,157.79,2.93]
[1762627669428,4.80606374,157.83,157.79,2.93]
[1762627669729,5.13915339,157.84,157.79,2.93]
[1762627669928,7.94606328,157.83,157.8,5.7051]
[1762627670229,3.18676378,157.83,157.8,8.67690644]
[1762627670429,0.04676378,157.83,157.82,2.93]
[1762627683741,0.04676378,157.83,157.81,8.6848]
[1762627683942,0.04676378,157.83,157.82,2.98]
[1762627693160,1.717e-05,157.84,157.83,8.6841]
[1762627693563,22.0,157.93,157.84,2.98]
[1762627693564,2.36423802,157.92,157.84,2.98]
[1762627694263,0.04838145,157.9,157.87,2.98]
[1762627694766,2.41261947,157.9,157.86,3.02598768]
[1762627695158,2.41261947,157.9,157.88,5.7022]
[1762627695363,2.41261947,157.9,157.89,2.98]
[1762627696865,2.98,157.89,157.86,5.74878768]
[1762627697059,2.36423802,157.87,157.86,8.72878768]
[1762627697564,5.34423802,157.89,157.87,2.98]
[1762627697965,2.36423802,157.89,157.87,2.98]
[1762627698262,2.36423802,157.89,157.87,8.6825]
[1762627698464,0.04838145,157.9,157.88,2.98]
[1762627699061,0.04838145,157.9,157.89,2.98]
[1762627713576,3.10838145,157.9,157.87,3.04]
[1762627713876,0.04838145,157.9,157.87,3.04]
[1762627714572,0.04838145,157.9,157.89,3.04]
[1762627720384,3.10838145,157.9,157.88,8.7423]
[1762627720585,0.04838145,157.9,157.88,8.7423]
[1762627720881,0.04838145,157.9,157.89,3.04]
[1762627723580,0.04838145,157.9,157.89,3.0]
[1762627723778,0.04838145,157.9,157.87,3.0]
[1762627724179,2.41261947,157.9,157.87,3.0]
[1762627724380,5.45261947,157.9,157.88,5.7022]
[1762627724787,5.45261947,157.9,157.87,3.0]
[1762627725989,3.04,157.89,157.86,0.04598768]
[1762627726586,5.40423802,157.88,157.86,0.04598768]
[1762627726891,3.04,157.87,157.86,0.04598768]
[1762627727185,7.83565539,157.87,157.86,0.04598768]
[1762627727381,3.04,157.86,157.78,3.0]
[1762627727585,2.36423802,157.84,157.78,3.0]
[1762627727882,5.40423802,157.82,157.78,3.0]
[1762627728084,3.04,157.81,157.78,8.7057]
[1762627728281,3.0847844,157.81,157.78,3.04564074]
[1762627728481,5.40423802,157.8,157.78,0.04564074]
[1762627728682,5.40423802,157.8,157.78,3.04564074]
[1762627729690,3.04,157.79,157.78,0.04564074]
[1762627730085,5.40423802,157.8,157.78,3.04564074]
[1762627730387,2.36423802,157.8,157.78,3.04564074]
[1762627733783,2.36423802,157.8,157.78,8.75144074]
[1762627733981,0.0447844,157.81,157.79,3.0]
[1762627734281,3.04,157.8,157.78,0.04564074]
[1762627735078,3.04,157.8,157.78,3.04564074]
[1762627735283,2.40902242,157.81,157.78,3.04564074]
[1762627735484,2.40902242,157.81,157.78,8.75144074]
[1762627735679,2.40902242,157.81,157.79,3.0]
[1762627735879,5.44902242,157.81,157.79,3.0]
[1762627736580,0.0447844,157.81,157.8,3.0]
[1762627740590,2.36423802,157.88,157.82,3.0]
[1762627741700,0.04054072,157.87,157.84,2.99]
[1762627741890,3.20054072,157.87,157.84,2.99]
[1762627742093,3.20054072,157.87,157.85,2.99]
[1762627744900,3.20054072,157.87,157.84,5.7035]
[1762627745096,3.16,157.85,157.83,0.04185321]
[1762627747805,3.20054072,157.87,157.84,2.99]
[1762627753901,0.04054072,157.87,157.84,2.99]
[1762627754501,3.20054072,157.87,157.84,2.99]
[1762627755006,3.20054072,157.87,157.85,5.7034]
[1762627755706,3.20054072,157.87,157.84,2.99]
[1762627756098,3.20054072,157.87,157.83,5.74575321]
[1762627756499,3.20054072,157.87,157.83,8.73575321]
[1762627757207,3.20054072,157.87,157.84,2.99]
[1762627761415,3.20054072,157.87,157.84,8.6938]
[1762627763111,3.20054072,157.87,157.83,0.04185321]
[1762627763814,3.20054072,157.87,157.83,3.03185321]
[1762627764114,3.20054072,157.87,157.84,8.6937]
[1762627764506,3.20054072,157.87,157.84,5.7037]
[1762627766317,3.20054072,157.87,157.84,8.6937]
[1762627766808,3.20054072,157.87,157.84,5.7037]
[1762627767014,3.16,157.85,157.83,0.04185321]
[1762627768416,7.97779918,157.84,157.83,0.04185321]
[1762627772025,3.19,157.82,157.79,5.7053]
[1762627772323,3.19,157.81,157.75,3.14]
[1762627772725,3.19,157.81,157.77,8.846]
[1762627773023,3.23857717,157.81,157.77,8.89323451]
[1762627773615,3.19,157.78,157.77,0.04723451]
[1762627773816,3.19,157.8,157.77,3.18723451]
[1762627774130,0.04857717,157.81,157.78,8.8459]
[1762627774320,4.82075319,157.8,157.79,3.14]
[1762627774520,0.04857717,157.81,157.79,3.14]
[1762627776030,0.04857717,157.81,157.79,8.8452]
[1762627776231,0.04857717,157.81,157.8,3.14]
[1762627776426,4.86887749,157.81,157.8,3.14]
[1762627777130,0.04857717,157.81,157.8,3.14]
[1762627778029,0.04857717,157.81,157.8,4.4]
[1762627778226,66.55337127,157.88,157.83,3.14]
[1762627778530,4.83832364,157.87,157.83,3.14]
[1762627778731,4.83832364,157.86,157.83,3.14]
[1762627778934,66.55337127,157.88,157.84,5.7037]
[1762627779133,4.83801619,157.87,157.85,3.14]
[1762627779335,4.83801619,157.86,157.85,3.14]
[1762627782238,3.73602203,157.88,157.86,3.14]
[1762627782433,4.83974178,157.87,157.86,3.14]
[1762627784140,0.04265076,157.88,157.87,5.7027]
[1762627784342,4.88113707,157.88,157.87,5.7027]
[1762627785843,4.88113707,157.88,157.87,3.02]
[1762627786341,0.04265076,157.88,157.87,3.02]
[1762627794445,3.69337127,157.94,157.9,3.02]
[1762627795042,3.69337127,157.94,157.92,3.02]
[1762627795643,0.0472493,157.95,157.92,3.02]
[1762627795844,3.0172493,157.95,157.92,3.02]
[1762627797846,6.71062057,157.95,157.92,3.02]
[1762627799345,3.74062057,157.95,157.92,3.02]
[1762627799753,6.71062057,157.95,157.92,3.02]
[1762627800350,3.74062057,157.95,157.93,3.02]
[1762627801449,0.0472493,157.95,157.93,3.02]
[1762627801642,3.0672493,157.95,157.93,3.02]
[1762627801840,3.0672493,157.95,157.91,3.04712239]
[1762627803055,0.0472493,157.95,157.92,3.0]
[1762627803447,3.0672493,157.95,157.92,3.0]
[1762627804141,3.02,157.93,157.91,0.04712239]
[1762627806755,3.02,157.93,157.91,3.04712239]
[1762627807355,3.02,157.93,157.91,8.74832239]
[1762627808547,3.02,157.93,157.91,3.04712239]
[1762627809054,3.02,157.93,157.91,0.04712239]
[1762627814353,3.69337127,157.94,157.92,3.0]
[1762627814958,3.0672493,157.95,157.92,8.7008]
[1762627815356,0.0472493,157.95,157.93,3.0]
[1762627815749,3.0672493,157.95,157.93,3.0]
[1762627816159,3.0672493,157.95,157.93,8.7005]
[1762627816348,2.40920952,157.95,157.93,8.7005]
[1762627820055,2.40920952,157.95,157.94,3.0]
[1762627822467,0.0472493,157.95,157.94,3.0]
[1762627825264,5.38196022,157.99,157.96,3.0]
[1762627825464,10.21939883,157.98,157.91,3.0]
[1762627825770,7.8574395,157.97,157.93,3.0]
[1762627825972,3.02,157.97,157.93,3.0]
[1762627826158,5.91889203,158.0,157.93,3.04757386]
[1762627826364,2.36196022,158.03,157.99,3.0]
[1762627826670,7.8572955,158.02,157.99,3.0]
[1762627826872,5.38196022,158.02,157.99,3.0]
[1762627827368,5.41062127,158.02,157.99,3.04304886]
[1762627827563,5.38196022,158.0,157.99,0.04304886]
[1762627827759,10.21828426,158.0,157.99,0.04304886]
[1762627828763,3.02,157.99,157.93,3.0]
[1762627828964,10.21828426,157.98,157.93,3.0]
[1762627829171,5.38196022,157.98,157.93,3.0]
[1762627829374,5.38196022,157.98,157.94,3.0]
[1762627829973,3.02,157.97,157.94,3.04238826]
[1762627830273,7.2007392,157.96,157.94,0.04238826]
[1762627830463,5.38196022,157.96,157.94,0.04238826]
[1762627832273,0.0465687,157.98,157.94,8.93248826]
[1762627832478,0.0465687,157.98,157.94,3.23238826]
[1762627833273,2.40852892,157.98,157.94,3.23238826]
[1762627833469,2.99,157.96,157.94,5.74228826]
[1762627833670,2.99,157.95,157.94,0.04238826]
[1762627833874,10.19340832,157.95,157.94,0.04238826]
[1762627834075,5.35196022,157.95,157.94,0.04238826]
[1762627834274,10.19459237,157.95,157.94,0.04238826]
[1762627834474,7.20459237,157.95,157.94,0.04238826]
[1762627834677,2.36196022,157.95,157.94,0.04238826]
[1762627835271,5.35196022,157.97,157.94,0.04238826]
[1762627835471,4.84322892,157.96,157.94,3.23238826]
[1762627835672,5.35196022,157.97,157.94,3.23238826]
[1762627835973,4.84322756,157.96,157.94,3.23238826]
[1762627836170,5.35196022,157.97,157.94,3.23238826]
[1762627836371,4.84351188,157.96,157.94,3.23238826]
[1762627836579,5.35196022,157.97,157.94,3.23238826]
[1762627836771,4.84351188,157.96,157.94,8.93238826]
[1762627836970,5.35196022,157.97,157.94,8.93238826]
[1762627837677,4.83454622,157.96,157.94,8.93238826]
[1762627837877,5.35196022,157.97,157.94,8.93238826]
[1762627838178,4.83460247,157.96,157.94,8.93238826]
[1762627838381,2.99,157.97,157.94,8.93238826]
[1762627838583,4.83482644,157.96,157.94,8.93238826]
[1762627838879,5.35196022,157.97,157.94,8.93238826]
[1762627839066,4.83482644,157.96,157.94,8.93238826]
[1762627839267,5.35196022,157.97,157.95,3.19]
[1762627839466,4.83502139,157.96,157.95,3.19]
[1762627839676,4.83502139,157.96,157.94,5.74238826]
[1762627839872,5.35196022,157.97,157.94,8.93238826]
[1762627840080,4.83492077,157.96,157.94,8.93238826]
[1762627840377,5.35196022,157.97,157.94,8.93238826]
[1762627840578,4.83488145,157.96,157.94,8.93238826]
[1762627840775,5.35196022,157.97,157.94,8.93238826]
[1762627840974,4.83488145,157.96,157.94,8.93238826]
[1762627841174,5.35196022,157.97,157.94,8.93238826]
[1762627841376,5.35196022,157.95,157.94,0.04238826]
[1762627841571,10.18700576,157.95,157.94,0.04238826]
[1762627842270,7.19700576,157.95,157.94,3.23238826]
[1762627842971,7.19700576,157.95,157.94,0.04238826]
[1762627843575,2.36196022,157.97,157.95,5.6998]
[1762627843881,3.0365687,157.98,157.95,2.99]
[1762627843882,0.0465687,157.98,157.95,2.99]
[1762627844476,0.0465687,157.98,157.97,8.6891]
[1762627849679,0.0465687,157.98,157.95,8.6896]
[1762627849881,2.9765687,157.98,157.95,2.99]
[1762627850376,0.0465687,157.98,157.95,2.99]
[1762627850983,0.0465687,157.98,157.96,5.6994]
[1762627851289,2.9765687,157.98,157.95,2.99]
[1762627852681,2.36196022,157.97,157.95,5.6998]
[1762627852869,0.0465687,157.98,157.96,2.99]
[1762627854081,0.0465687,157.98,157.96,8.6894]
[1762627854785,0.0465687,157.98,157.97,2.99]
[1762627865094,3.0365687,157.98,157.96,5.6994]
[1762627865295,3.0365687,157.98,157.96,8.7394]
[1762627865800,0.0465687,157.98,157.96,8.7394]
[1762627866407,3.0365687,157.98,157.94,8.78258826]
[1762627866702,2.36196022,157.97,157.94,3.08238826]
[1762627867101,0.0465687,157.98,157.96,3.04]
[1762627867911,4.85142783,157.97,157.96,3.04]
[1762627869105,3.0365687,157.98,157.95,3.04]
[1762627869306,4.85258951,157.97,157.95,3.04]
[1762627869604,2.36196022,157.97,157.95,3.04]
[1762627871111,2.36196022,157.97,157.95,8.7398]
[1762627876407,2.36196022,157.97,157.96,3.04]
[1762627876609,0.0465687,157.98,157.97,3.04]
[1762627876913,10.25228289,157.98,157.96,5.6995]
[1762627877114,4.85375397,157.97,157.96,5.6995]
[1762627877416,2.40852892,157.98,157.97,3.04]
[1762627877616,7.26298102,157.98,157.97,3.04]
[1762627878218,4.9010208,157.98,157.97,3.04]
[1762627878419,4.9010208,157.98,157.96,5.6995]
[1762627878420,7.8910208,157.98,157.96,8.7395]
[1762627878614,0.0465687,157.98,157.97,3.04]
[1762627879213,4.90104181,157.98,157.97,3.04]
[1762627880917,24.99,158.02,157.94,0.04238826]
[1762627881119,2.99,158.02,157.99,3.04]
[1762627881915,3.01514121,158.02,157.99,3.08232582]
[1762627882117,3.01514121,158.02,158.0,5.698]
[1762627884523,0.02514121,158.02,158.0,8.738]
[1762627884722,0.02514121,158.02,158.01,3.04]
[1762627885920,0.02514121,158.02,158.0,8.738]
[1762627887618,0.02514121,158.02,158.01,3.04]
[1762627889626,3.01514121,158.02,158.0,5.698]
[1762627891920,3.06,158.0,157.95,2.95]
[1762627892220,4.66320865,157.99,157.95,2.95]
[1762627892524,3.06,158.0,157.97,8.6491]
[1762627892815,4.66307687,157.99,157.97,8.69242403]
[1762627893021,4.83401841,157.98,157.97,8.69242403]
[1762627894016,12.55709015,157.98,157.97,0.04332403]
[1762627894717,16.2461784,157.98,157.97,0.04332403]
[1762627894913,3.06,157.97,157.94,5.66684247]
[1762627895113,12.55803331,157.96,157.92,2.95]
[1762627895315,9.49803331,157.95,157.92,2.95]
[1762627895520,3.06,157.96,157.93,2.95]
[1762627895521,4.83401841,157.94,157.93,2.95]
[1762627895925,12.55779193,157.94,157.92,0.0470811]
[1762627896118,3.06,157.94,157.92,0.0470811]
[1762627897319,6.78960797,157.95,157.92,2.9970811]
[1762627897519,9.4916085,157.94,157.92,2.9970811]
[1762627897721,3.06,157.94,157.92,2.9970811]
[1762627898326,12.54651876,157.93,157.92,0.0470811]
[1762627898519,9.48651876,157.93,157.92,0.0470811]
[1762627898716,6.78960797,157.95,157.92,0.0470811]
[1762627898921,12.54663252,157.94,157.92,0.0470811]
[1762627899223,3.06,157.94,157.92,0.0470811]
[1762627899427,0.04051972,157.95,157.92,2.9970811]
[1762627900923,0.04051972,157.95,157.93,5.7005]
[1762627901129,0.04051972,157.95,157.94,2.95]
[1762627922942,0.04051972,157.95,157.93,8.7905]
[1762627924138,0.04051972,157.95,157.94,3.09]
[1762627928046,12.66986628,158.0,157.96,3.09]
[1762627928241,3.21,158.0,157.96,3.09]
[1762627928447,3.21,157.98,157.92,3.09]
[1762627929047,0.04559408,157.97,157.95,8.7898]
[1762627929754,0.04559408,157.97,157.96,3.09]
[1762627929947,9.50797393,157.97,157.96,3.09]
[1762627930252,0.04559408,157.97,157.96,3.09]
[1762627930649,0.04559408,157.97,157.95,5.6998]
[1762627930845,3.25559408,157.97,157.95,5.6998]
[1762627931953,3.25559408,157.97,157.93,8.8314535]
[1762627932150,3.25559408,157.97,157.93,3.1311535]
[1762627933060,3.25559408,157.97,157.95,5.6998]
[1762627933853,12.67766597,157.96,157.95,5.6998]
[1762627934247,12.67766597,157.96,157.93,8.8313535]
[1762627934448,3.21,157.96,157.93,3.1311535]
[1762627934648,0.04559408,157.97,157.93,3.1311535]
[1762627934847,9.46949019,157.96,157.93,3.1311535]
[1762627935048,3.25559408,157.97,157.93,3.1311535]
[1762627935250,9.47041764,157.96,157.93,3.1311535]
[1762627935460,3.25559408,157.97,157.93,3.1311535]
[1762627935958,3.25559408,157.97,157.94,5.7001]
[1762627936157,3.25559408,157.97,157.94,8.7901]
[1762627937558,3.25559408,157.97,157.95,5.6998]
[1762627938062,0.04559408,157.97,157.96,3.09]
[1762627938360,4.82905367,157.97,157.96,3.09]
[1762627939059,0.04559408,157.97,157.96,3.09]
[1762627954770,3.15559408,157.97,157.95,5.6998]
[1762627954970,5.47068975,157.96,157.93,3.1711535]
[1762627955267,0.04559408,157.97,157.93,3.1711535]
[1762627956277,0.04559408,157.97,157.96,3.13]
[1762627961874,2.36068975,158.03,157.99,3.13]
[1762627962073,4.79262981,158.02,157.99,3.13]
[1762627962276,5.47068975,158.03,157.99,3.13]
[1762627962462,4.79157007,158.02,158.0,5.6979]
[1762627962663,5.47068975,158.03,158.0,5.6979]
[1762627962974,4.79172543,158.02,158.0,5.6979]
[1762627963176,5.49536701,158.03,158.0,5.6979]
[1762627963376,4.7915019,158.02,158.0,5.6979]
[1762627963678,5.44068975,158.02,158.0,5.6979]
[1762627963872,5.44068975,158.02,158.0,8.8179]
[1762627964478,2.36068975,158.02,158.01,3.12]
[1762627964678,7.1507532,158.02,158.01,3.12]
[1762627964977,7.1507532,158.02,157.99,0.04692154]
[1762627964978,10.2307532,158.02,157.99,3.16692154]
[1762627965178,5.44068975,158.02,157.99,3.16692154]
[1762627965580,5.44068975,158.02,158.0,5.6979]
[1762627968483,5.44068975,158.02,158.0,8.8179]
[1762627971679,5.44068975,158.02,158.0,5.6979]
[1762627974182,3.08,158.01,158.0,5.6979]
[1762627975685,5.44068975,158.02,158.0,8.8179]
[1762627976087,3.08,158.01,158.0,5.6979]
[1762627977876,3.08,158.01,157.99,3.16692154]
[1762627978984,3.08,158.01,157.99,8.86522154]
[1762627986594,5.48068975,158.02,158.0,3.16]
[1762627987797,4.78859583,158.01,158.0,3.16]
[1762627988294,3.12,158.01,158.0,3.16]
[1762627988494,7.90876662,158.01,158.0,3.16]
[1762627990297,3.12,158.01,158.0,3.16]
[1762627990894,2.36068975,158.02,158.0,3.16]
[1762627991196,5.48068975,158.02,158.0,3.16]
[1762627993699,3.12,158.01,158.0,3.16]
[1762627995293,7.90937461,158.01,158.0,3.16]
[1762627996201,5.48068975,158.02,158.0,3.16]
[1762627998296,2.36068975,158.02,158.01,3.16]
[1762627998498,7.15109658,158.02,158.01,3.16]
[1762628000312,7.91040683,158.02,158.0,8.858]
[1762628000504,3.12,158.02,158.0,8.858]
[1762628000705,4.7921279,158.01,158.0,8.858]
[1762628001510,3.14467726,158.03,158.01,3.16]
[1762628001706,7.91323428,158.02,158.01,3.16]
[1762628002113,7.91323428,158.02,158.0,8.858]
[1762628002314,4.79323428,158.01,158.0,8.858]
[1762628008022,0.02467726,158.03,158.02,8.8573]
[1762628008324,9.31025508,158.03,158.02,8.8573]
[1762628010628,9.30706116,158.03,158.02,8.8573]
[1762628011420,0.02467726,158.03,158.02,8.8573]
[1762628014334,4.81597336,158.03,158.02,3.16]
[1762628014627,12.43238855,158.03,158.0,2.98]
[1762628014822,7.9212961,158.02,158.0,2.98]
[1762628015029,3.13,158.02,158.0,2.98]
[1762628017327,0.02467726,158.03,158.0,2.98]
[1762628018430,0.02467726,158.03,158.02,2.98]
[1762628018622,9.34762705,158.03,158.02,2.98]
[1762628019528,12.47762705,158.03,157.99,3.02692154]
[1762628019826,3.15467726,158.03,157.99,3.02692154]
[1762628021131,3.15467726,158.03,158.01,2.98]
[1762628021920,3.15467726,158.03,158.01,8.6777]
[1762628026936,0.02467726,158.03,158.02,3.03]
[1762628028232,3.13467726,158.03,158.01,5.6977]
[1762628028535,0.02467726,158.03,158.02,3.03]
[1762628030739,4.81828186,158.03,158.02,3.03]
[1762628031535,9.34645386,158.03,158.02,3.03]
[1762628034243,0.02467726,158.03,158.02,3.03]
[1762628037242,0.02467726,158.03,158.02,8.7273]
[1762628039837,4.55388815,158.03,158.02,8.7273]
[1762628041044,4.55388815,158.03,158.02,3.03]
[1762628042945,4.55388815,158.03,158.02,8.7274]
[1762628043744,0.02467726,158.03,158.02,8.7274]
[1762628045440,14.64147618,158.1,158.05,3.22]
[1762628045643,3.03,158.08,158.05,3.22]
[1762628045945,3.03,158.06,158.04,3.22]
[1762628046242,11.61167618,158.09,158.04,3.22]
[1762628046243,4.32885411,158.05,158.04,3.22]
[1762628046753,9.1234803,158.05,158.04,3.22]
[1762628046951,12.1534803,158.05,158.03,0.04130903]
[1762628047152,4.79462619,158.04,158.03,0.04130903]
[1762628047545,7.82462619,158.04,158.03,0.04130903]
[1762628053355,4.79462619,158.04,158.03,3.26130903]
[1762628054242,3.03,158.06,158.03,3.26130903]
[1762628054450,7.81822822,158.05,158.03,3.26130903]
[1762628054756,3.03,158.05,158.03,3.26130903]
[1762628055755,4.78824249,158.04,158.03,3.26130903]
[1762628060264,12.36434036,158.04,158.03,0.04130903]
[1762628060457,14.72380985,158.04,158.03,0.04130903]
[1762628066972,9.33434036,158.04,158.03,3.26130903]
[1762628068771,12.36434036,158.04,158.03,0.04130903]
[1762628071188,9.33434036,158.04,158.03,3.26130903]
[1762628071470,4.78824249,158.04,158.03,3.26130903]
[1762628071674,9.33477614,158.04,158.03,3.26130903]
[1762628075677,4.78824249,158.04,158.03,3.26130903]
[1762628075872,62.76,158.08,158.03,0.04130903]
[1762628075873,3.09,158.05,158.03,0.04130903]
[1762628076079,7.87750865,158.04,158.03,0.04130903]
[1762628076373,14.78319674,158.04,158.03,0.04130903]
[1762628076676,14.78362979,158.04,158.03,0.04130903]
[1762628088992,12.4241603,158.04,158.03,0.04130903]
[1762628089190,14.78362979,158.04,158.03,0.04130903]
[1762628090686,12.4241603,158.04,158.03,0.04130903]
[1762628090989,14.78362979,158.04,158.03,0.04130903]
[1762628092087,11.69362979,158.04,158.03,3.02130903]
[1762628092293,14.60362979,158.04,158.03,0.04130903]
[1762628097102,14.5946586,158.04,158.03,0.04130903]
[1762628110310,14.5946586,158.04,157.96,3.21]
[1762628110311,3.0,158.03,157.96,3.21]
[1762628110518,5.35946949,157.97,157.93,3.21]
[1762628111319,5.35946949,157.97,157.93,3.25120942]
[1762628111614,5.39971443,157.97,157.95,3.21]
[1762628112211,3.0,157.96,157.95,5.6996]
[1762628119717,3.04024494,157.97,157.95,8.9096]
[1762628121121,3.04024494,157.97,157.95,5.6996]
[1762628121318,0.04024494,157.97,157.96,3.21]
[1762628126424,22.0,158.01,157.98,3.21]
[1762628126622,3.0,158.02,157.98,3.21]
[1762628127422,3.0,158.02,157.98,3.25065914]
[1762628128025,3.0,158.02,158.0,5.6981]
[1762628129230,3.0,158.0,157.98,0.04065914]
[1762628129728,3.0,158.0,157.98,3.25065914]
[1762628130931,3.0,158.0,157.99,5.6984]
[1762628131432,2.96,158.03,157.99,8.8584]
[1762628131633,12.37980164,158.02,158.0,5.698]
[1762628131835,2.96,158.02,158.0,5.698]
[1762628133925,2.96,158.02,158.0,8.858]
[1762628134125,2.96,158.04,158.01,5.6975]
[1762628134326,12.38022006,158.03,158.01,5.73963777]
[1762628134527,2.96,158.03,158.01,5.73963777]
[1762628139440,2.96,158.04,158.02,3.16]
[1762628139740,9.44670313,158.03,158.02,3.16]
[1762628139940,12.40670313,158.03,158.01,8.89963777]
[1762628140239,2.96,158.03,158.01,8.89963777]
[1762628142242,4.6960274,158.02,158.01,8.89963777]
[1762628142446,2.96,158.03,158.01,8.89963777]
[1762628144642,7.75685476,158.02,158.01,5.73963777]
[1762628144839,3.06,158.03,158.01,8.96963777]
[1762628146347,9.45158657,158.02,158.01,3.27213777]
[1762628146542,7.75732929,158.02,158.01,0.04213777]
[1762628146743,12.51205271,158.02,158.01,0.04213777]
[1762628147938,4.69732929,158.02,158.01,3.27213777]
[1762628149340,9.45343762,158.02,158.01,3.27213777]
[1762628149739,4.69732929,158.02,158.01,3.27213777]
[1762628150650,12.51397461,158.02,158.01,0.04213777]
[1762628150849,7.75732929,158.02,158.01,0.04213777]
[1762628151540,12.51454216,158.02,158.01,0.04213777]
[1762628155557,9.45454216,158.02,158.01,3.27213777]
[1762628157454,12.51454216,158.02,158.01,3.27213777]
[1762628159065,9.45454216,158.02,158.01,3.27213777]
[1762628161462,4.69732929,158.02,158.01,3.27213777]
[1762628161658,3.06,158.04,158.01,8.96953777]
[1762628161854,2.99,158.02,158.01,5.73953777]
[1762628162060,12.45378211,158.02,158.01,0.04213777]
[1762628173279,9.46378211,158.02,158.01,3.25213777]
[1762628173473,2.99,158.05,158.01,3.25213777]
[1762628173777,2.99,158.06,158.01,3.25213777]
[1762628173978,2.99,158.05,158.01,0.04213777]
[1762628174279,8.90396186,158.02,157.98,214.3272691]
[1762628174474,2.99,158.01,157.99,3.21]
[1762628174673,2.99,158.01,157.99,8.9084]
[1762628180873,3.03213777,158.02,157.99,5.6984]
[1762628181086,3.03213777,158.02,157.99,8.9084]
[1762628182479,5.3502909,158.01,157.99,8.9084]
[1762628185390,4.73471358,158.0,157.99,8.9084]
[1762628194291,12.22508142,158.0,157.99,5.6984]
[1762628194496,2.98,157.99,157.98,0.04866615]
[1762628194703,4.73471358,157.99,157.98,3.03866615]
[1762628195495,14.58575388,157.99,157.98,0.04866615]
[1762628206700,5.3002909,158.0,157.98,3.03866615]
[1762628206906,2.3602909,158.0,157.98,3.03866615]
[1762628207100,24.94,158.01,157.98,3.03866615]
[1762628207297,4.68506467,158.0,157.98,3.03866615]
[1762628207499,24.94,158.01,157.98,3.03866615]
[1762628208004,24.94,158.01,157.99,5.6983]
[1762628208200,4.68524405,158.0,157.99,5.6983]
[1762628209398,24.94,158.01,157.99,5.6983]
[1762628211304,24.94,158.01,157.99,8.6883]
[1762628212506,2.94,158.01,157.99,8.6883]
[1762628212706,0.04213777,158.02,158.01,2.99]
[1762628221618,3.10213777,158.02,158.01,2.99]
[1762628224219,0.04213777,158.02,158.01,2.99]
[1762628228932,5.46242867,158.02,158.01,2.99]
[1762628229430,2.40242867,158.02,158.01,2.99]
[1762628233435,0.04213777,158.02,158.01,2.99]
[1762628236439,3.06,158.01,157.98,3.24866615]
[1762628236637,0.04213777,158.02,157.98,3.24866615]
[1762628236940,0.04213777,158.02,158.01,3.2]
[1762628242146,0.00082874,158.02,158.01,3.2]
[1762628243343,0.00082874,158.02,158.01,4.46]
[1762628244250,7.75915646,158.13,158.05,3.2]
[1762628244452,3.06,158.1,158.05,3.2]
[1762628244646,3.06,158.07,158.05,3.2]
[1762628244949,6.74480461,158.08,158.05,3.2]
[1762628245151,6.74480461,158.08,158.05,3.24619238]
[1762628245937,6.74480461,158.08,158.06,3.2]
[1762628246346,3.06,158.08,158.06,3.2]
[1762628247150,3.06,158.09,158.07,3.2]
[1762628251655,3.68480461,158.11,158.08,3.14]
[1762628251853,4.69765972,158.1,158.08,3.18076757]
[1762628252061,3.14,158.1,158.08,3.18076757]
[1762628252447,3.14,158.1,158.08,0.04076757]
[1762628252954,3.14,158.1,158.08,3.18076757]
[1762628253848,3.14,158.11,158.08,3.18076757]
[1762628254154,7.83684943,158.1,158.08,3.18076757]
[1762628254352,6.82480461,158.12,158.09,3.14]
[1762628254553,4.69664652,158.11,158.09,3.14]
[1762628254749,4.69664652,158.1,158.09,3.14]
[1762628254957,3.14,158.09,158.08,0.04076757]
[1762628255353,3.68480461,158.12,158.08,0.04076757]
[1762628255354,3.14,158.11,158.08,3.18076757]